[Event "*** Titled Tuesday Blitz"]
[Site "Chess.com"]
[Date "2019.02.05"]
[Round "5"]
[White "Korchmar_Vasiliy"]
[Black "kleinebeer98"]
[Result "0-1"]
[WhiteElo "2755"]
[BlackElo "2712"]
[TimeControl "180+2"]
[EndTime "14:07:10 PST"]
[Termination "kleinebeer98 won on time"]

1. d4 {[%clk 0:03:00.6]} 1... e6 {[%clk 0:03:00.4]} 2. c4 {[%clk 0:03:02]} 2...
b6 {[%clk 0:03:00.2]} 3. e4 {[%clk 0:03:02.7]} 3... Bb7 {[%clk 0:03:01.4]} 4.
Bd3 {[%clk 0:03:04]} 4... Nc6 {[%clk 0:03:02.5]} 5. Ne2 {[%clk 0:03:04]} 5... g6
{[%clk 0:03:03.7]} 6. Nbc3 {[%clk 0:02:56.7]} 6... Bg7 {[%clk 0:03:04.5]} 7. Be3
{[%clk 0:02:57.2]} 7... Nge7 {[%clk 0:03:05.9]} 8. Qd2 {[%clk 0:02:47.3]} 8...
d5 {[%clk 0:03:07]} 9. cxd5 {[%clk 0:02:44.6]} 9... exd5 {[%clk 0:03:08.9]} 10.
e5 {[%clk 0:02:45.2]} 10... f6 {[%clk 0:03:06.9]} 11. f4 {[%clk 0:02:43.2]}
11... Qd7 {[%clk 0:03:03.2]} 12. O-O {[%clk 0:02:38]} 12... O-O {[%clk
0:02:56.7]} 13. Ng3 {[%clk 0:02:28]} 13... Nb4 {[%clk 0:02:45.9]} 14. Bc2 {[%clk
0:02:21.4]} 14... c5 {[%clk 0:02:47.2]} 15. Ba4 {[%clk 0:01:52]} 15... Bc6
{[%clk 0:02:43.5]} 16. Bb3 {[%clk 0:01:40.2]} 16... Rad8 {[%clk 0:02:14.3]} 17.
a3 {[%clk 0:01:36.5]} 17... Na6 {[%clk 0:02:15.2]} 18. Rad1 {[%clk 0:01:35.2]}
18... Kh8 {[%clk 0:02:11.1]} 19. Kh1 {[%clk 0:01:23.3]} 19... Nc7 {[%clk
0:01:55.1]} 20. dxc5 {[%clk 0:01:08.2]} 20... fxe5 {[%clk 0:01:33.5]} 21. fxe5
{[%clk 0:01:10.1]} 21... Ne6 {[%clk 0:01:33.8]} 22. Rxf8+ {[%clk 0:01:05.8]}
22... Bxf8 {[%clk 0:01:26.2]} 23. cxb6 {[%clk 0:01:03.3]} 23... axb6 {[%clk
0:01:23.9]} 24. Bxb6 {[%clk 0:00:57.3]} 24... Rb8 {[%clk 0:01:24.6]} 25. Qf2
{[%clk 0:00:58.9]} 25... Bg7 {[%clk 0:01:16.1]} 26. a4 {[%clk 0:00:55.9]} 26...
d4 {[%clk 0:00:59.1]} 27. Bxe6 {[%clk 0:00:51.5]} 27... Qxe6 {[%clk 0:01:01]}
28. Bxd4 {[%clk 0:00:53.1]} 28... Rf8 {[%clk 0:00:54.3]} 29. Qe2 {[%clk
0:00:54.4]} 29... h5 {[%clk 0:00:51.5]} 30. Nge4 {[%clk 0:00:53.3]} 30... Rf4
{[%clk 0:00:48.7]} 31. a5 {[%clk 0:00:48.1]} 31... h4 {[%clk 0:00:44.4]} 32. h3
{[%clk 0:00:36.4]} 32... Nf5 {[%clk 0:00:42.7]} 33. Bf2 {[%clk 0:00:37.9]} 33...
Bxe5 {[%clk 0:00:24.9]} 34. Ng5 {[%clk 0:00:36]} 34... Rxf2 {[%clk 0:00:09.7]}
35. Qxf2 {[%clk 0:00:29.6]} 35... Qe7 {[%clk 0:00:11]} 36. Nf3 {[%clk
0:00:23.9]} 36... Bf4 {[%clk 0:00:12.1]} 37. Re1 {[%clk 0:00:12.4]} 37... Qb4
{[%clk 0:00:13.5]} 38. Nxh4 {[%clk 0:00:10.6]} 38... Ng3+ {[%clk 0:00:04.7]} 39.
Kg1 {[%clk 0:00:09.1]} 39... Kh7 {[%clk 0:00:06.6]} 40. Nf3 {[%clk 0:00:05]}
40... Bd6 {[%clk 0:00:07.1]} 41. Na4 {[%clk 0:00:02.1]} 41... Qxa4 {[%clk
0:00:07.1]} 42. Rc1 {[%clk 0:00:03]} 42... Bxf3 {[%clk 0:00:06.9]} 43. Qxf3
{[%clk 0:00:02.7]} 43... Qd4+ {[%clk 0:00:08.2]} 0-1

[Event "*** Titled Tuesday Blitz"]
[Site "Chess.com"]
[Date "2019.02.05"]
[Round "5"]
[White "mjray79"]
[Black "Shivagami"]
[Result "0-1"]
[WhiteElo "2060"]
[BlackElo "2142"]
[TimeControl "180+2"]
[EndTime "14:07:17 PST"]
[Termination "Shivagami won on time"]

1. d4 {[%clk 0:03:01.9]} 1... d5 {[%clk 0:02:59.5]} 2. Nf3 {[%clk 0:03:00.9]}
2... Nf6 {[%clk 0:02:59.6]} 3. c4 {[%clk 0:03:00.5]} 3... c6 {[%clk 0:03:00.4]}
4. Nc3 {[%clk 0:03:00.2]} 4... dxc4 {[%clk 0:03:01.6]} 5. a4 {[%clk 0:02:57.9]}
5... Bf5 {[%clk 0:03:02.4]} 6. Ne5 {[%clk 0:02:56.2]} 6... Nbd7 {[%clk
0:02:57.9]} 7. Nxc4 {[%clk 0:02:55.8]} 7... Qc7 {[%clk 0:02:57.8]} 8. g3 {[%clk
0:02:56.6]} 8... e5 {[%clk 0:02:58.7]} 9. dxe5 {[%clk 0:02:56]} 9... Nxe5 {[%clk
0:03:00.2]} 10. Bf4 {[%clk 0:02:53.4]} 10... Nfd7 {[%clk 0:03:01.4]} 11. Bg2
{[%clk 0:02:51.5]} 11... f6 {[%clk 0:03:02.4]} 12. O-O {[%clk 0:02:48.4]} 12...
g5 {[%clk 0:03:03.1]} 13. Bxe5 {[%clk 0:02:48.1]} 13... Nxe5 {[%clk 0:02:51.1]}
14. Ne3 {[%clk 0:02:48.6]} 14... Be6 {[%clk 0:02:37.7]} 15. Rc1 {[%clk
0:02:48.6]} 15... Qb6 {[%clk 0:02:33.7]} 16. Ne4 {[%clk 0:02:39.7]} 16... Rd8
{[%clk 0:02:10.4]} 17. Qc2 {[%clk 0:02:15.1]} 17... Be7 {[%clk 0:01:54.2]} 18.
Qc3 {[%clk 0:01:57.8]} 18... h6 {[%clk 0:01:34.9]} 19. a5 {[%clk 0:01:32]} 19...
Qd4 {[%clk 0:01:19.6]} 20. Rfd1 {[%clk 0:01:09.9]} 20... Qxc3 {[%clk 0:01:16.5]}
21. bxc3 {[%clk 0:01:10.2]} 21... Kf7 {[%clk 0:01:11.4]} 22. f3 {[%clk
0:00:52.3]} 22... f5 {[%clk 0:01:06.1]} 23. Nf2 {[%clk 0:00:51.4]} 23... Bc5
{[%clk 0:01:01.1]} 24. Nc2 {[%clk 0:00:51.3]} 24... Bb3 {[%clk 0:00:48.3]} 25.
Kf1 {[%clk 0:00:24.7]} 25... Nc4 {[%clk 0:00:18.4]} 26. Rxd8 {[%clk 0:00:04.8]}
26... Rxd8 {[%clk 0:00:17.5]} 27. Ne1 {[%clk 0:00:05.7]} 27... Ne3+ {[%clk
0:00:15]} 28. Kg1 {[%clk 0:00:06.1]} 28... Rd2 {[%clk 0:00:10.7]} 29. Ned3
{[%clk 0:00:06.1]} 29... Bd6 {[%clk 0:00:08.3]} 30. Re1 {[%clk 0:00:05.8]} 30...
Nc2 {[%clk 0:00:06.7]} 31. Rb1 {[%clk 0:00:04.7]} 31... Bd5 {[%clk 0:00:04]} 32.
Rxb7+ {[%clk 0:00:05.2]} 32... Ke6 {[%clk 0:00:05.6]} 33. Rh7 {[%clk 0:00:03.8]}
33... Rxe2 {[%clk 0:00:06.9]} 34. Rxh6+ {[%clk 0:00:04.6]} 34... Kd7 {[%clk
0:00:08.5]} 35. Rh7+ {[%clk 0:00:05.2]} 35... Kc8 {[%clk 0:00:08.8]} 36. Rxa7
{[%clk 0:00:05.6]} 36... Kb8 {[%clk 0:00:09.2]} 37. Rd7 {[%clk 0:00:04.9]} 37...
Ba3 {[%clk 0:00:09.3]} 38. a6 {[%clk 0:00:04.6]} 38... Ka8 {[%clk 0:00:09.4]}
39. Rd8+ {[%clk 0:00:02.1]} 39... Ka7 {[%clk 0:00:09.6]} 40. Rg8 {[%clk
0:00:02.7]} 40... Kxa6 {[%clk 0:00:10.1]} 41. Rxg5 {[%clk 0:00:02.6]} 41... Ne3
{[%clk 0:00:11.6]} 42. Rg7 {[%clk 0:00:02.2]} 42... Rc2 {[%clk 0:00:11.2]} 0-1

[Event "*** Titled Tuesday Blitz"]
[Site "Chess.com"]
[Date "2019.02.05"]
[Round "5"]
[White "BvsN"]
[Black "FrankieJay"]
[Result "1-0"]
[WhiteElo "2311"]
[BlackElo "2382"]
[TimeControl "180+2"]
[EndTime "14:07:18 PST"]
[Termination "BvsN won by resignation"]

1. d4 {[%clk 0:03:01.9]} 1... Nf6 {[%clk 0:03:01]} 2. c4 {[%clk 0:03:02.6]} 2...
g6 {[%clk 0:03:02.4]} 3. Nc3 {[%clk 0:03:03.6]} 3... Bg7 {[%clk 0:03:03.6]} 4.
e4 {[%clk 0:03:04.7]} 4... O-O {[%clk 0:03:05.1]} 5. Nge2 {[%clk 0:03:05.6]}
5... d6 {[%clk 0:03:05.9]} 6. f3 {[%clk 0:03:06.5]} 6... c5 {[%clk 0:03:06.4]}
7. d5 {[%clk 0:03:07.4]} 7... e6 {[%clk 0:03:06.8]} 8. Ng3 {[%clk 0:03:08.6]}
8... exd5 {[%clk 0:03:07.8]} 9. cxd5 {[%clk 0:03:09.6]} 9... h5 {[%clk
0:03:09.1]} 10. Bg5 {[%clk 0:03:08.6]} 10... Nbd7 {[%clk 0:03:01.7]} 11. Be2
{[%clk 0:03:07.1]} 11... Qb6 {[%clk 0:03:03]} 12. Qd2 {[%clk 0:03:07.3]} 12...
Nh7 {[%clk 0:03:03.8]} 13. Bh6 {[%clk 0:02:39]} 13... Bxh6 {[%clk 0:02:33.3]}
14. Qxh6 {[%clk 0:02:39.8]} 14... Qxb2 {[%clk 0:02:34.9]} 15. Rc1 {[%clk
0:02:34.3]} 15... h4 {[%clk 0:02:33.5]} 16. Nf1 {[%clk 0:02:30.2]} 16... g5
{[%clk 0:02:25]} 17. Kd1 {[%clk 0:02:12.7]} 17... Ne5 {[%clk 0:02:11.5]} 18. Ne3
{[%clk 0:02:04.9]} 18... Ng6 {[%clk 0:01:35]} 19. Nf5 {[%clk 0:01:52.8]} 19...
Bxf5 {[%clk 0:01:29.7]} 20. exf5 {[%clk 0:01:53.6]} 20... Nf4 {[%clk 0:01:30]}
21. f6 {[%clk 0:01:39.9]} 21... Nxf6 {[%clk 0:01:03.2]} 22. Qxf6 {[%clk
0:01:40.7]} 22... Nxe2 {[%clk 0:00:57.8]} 23. Qxg5+ {[%clk 0:01:41.6]} 23... Kh7
{[%clk 0:00:58.9]} 24. Qxh4+ {[%clk 0:01:37.3]} 24... Kg7 {[%clk 0:01:00.1]} 25.
Qg5+ {[%clk 0:01:34]} 25... Kh7 {[%clk 0:01:00.9]} 26. Nxe2 {[%clk 0:01:25.4]}
26... Rfe8 {[%clk 0:01:01.6]} 27. Re1 {[%clk 0:01:16.8]} 27... Re5 {[%clk
0:01:02.7]} 28. Qd2 {[%clk 0:01:04.9]} 28... Qa3 {[%clk 0:00:20]} 29. Nc3 {[%clk
0:01:01.5]} 29... Rae8 {[%clk 0:00:20.9]} 30. Rxe5 {[%clk 0:01:00.6]} 30... Rxe5
{[%clk 0:00:22.8]} 31. Kc2 {[%clk 0:00:52.3]} 31... b5 {[%clk 0:00:23.4]} 32.
Qd3+ {[%clk 0:00:44]} 32... Kg7 {[%clk 0:00:24.3]} 33. Qxb5 {[%clk 0:00:40.7]}
33... Re3 {[%clk 0:00:19.7]} 34. Kd2 {[%clk 0:00:28.6]} 34... c4 {[%clk
0:00:20.7]} 35. Qxc4 {[%clk 0:00:21.1]} 35... Re7 {[%clk 0:00:07.4]} 36. Qd3
{[%clk 0:00:14.1]} 36... Kf8 {[%clk 0:00:06.2]} 37. Rc2 {[%clk 0:00:12.5]} 37...
Rc7 {[%clk 0:00:06.3]} 38. Ne4 {[%clk 0:00:11.1]} 38... Qb4+ {[%clk 0:00:07.2]}
39. Ke2 {[%clk 0:00:11.1]} 39... Re7 {[%clk 0:00:08.6]} 40. Rc8+ {[%clk
0:00:09.8]} 40... Kg7 {[%clk 0:00:08.7]} 41. Kf2 {[%clk 0:00:09.2]} 41... Qb6+
{[%clk 0:00:09]} 42. Kg3 {[%clk 0:00:07.7]} 42... f5 {[%clk 0:00:08]} 43. Qc3+
{[%clk 0:00:08.3]} 43... Re5 {[%clk 0:00:05.9]} 44. f4 {[%clk 0:00:07.6]} 44...
fxe4 {[%clk 0:00:03.3]} 45. fxe5 {[%clk 0:00:08.5]} 45... Qg1 {[%clk 0:00:03.3]}
46. e6+ {[%clk 0:00:08.4]} 46... Kg6 {[%clk 0:00:04.3]} 47. Rg8+ {[%clk
0:00:08.7]} 47... Kf5 {[%clk 0:00:05.6]} 48. Rf8+ {[%clk 0:00:07.9]} 1-0

[Event "*** Titled Tuesday Blitz"]
[Site "Chess.com"]
[Date "2019.02.05"]
[Round "5"]
[White "GukeshDommaraju"]
[Black "GM_dmitrij"]
[Result "0-1"]
[WhiteElo "2688"]
[BlackElo "2778"]
[TimeControl "180+2"]
[EndTime "14:07:24 PST"]
[Termination "GM_dmitrij won by resignation"]

1. e4 {[%clk 0:03:01.9]} 1... e5 {[%clk 0:03:00.6]} 2. Nf3 {[%clk 0:03:02.7]}
2... Nc6 {[%clk 0:03:02]} 3. Bc4 {[%clk 0:03:03.4]} 3... Nf6 {[%clk 0:03:02.5]}
4. Ng5 {[%clk 0:03:03.3]} 4... d5 {[%clk 0:03:03.5]} 5. exd5 {[%clk 0:03:04.5]}
5... Na5 {[%clk 0:03:04.7]} 6. Bb5+ {[%clk 0:03:05.8]} 6... Bd7 {[%clk
0:03:06.2]} 7. Be2 {[%clk 0:03:05.1]} 7... Nxd5 {[%clk 0:03:01.5]} 8. d4 {[%clk
0:02:56.6]} 8... Be7 {[%clk 0:02:31.3]} 9. Nf3 {[%clk 0:02:31.7]} 9... exd4
{[%clk 0:02:23.4]} 10. Nxd4 {[%clk 0:02:22.6]} 10... O-O {[%clk 0:02:21.8]} 11.
O-O {[%clk 0:02:23.1]} 11... Nc6 {[%clk 0:02:17.2]} 12. Bf3 {[%clk 0:02:20.3]}
12... Nxd4 {[%clk 0:02:07.4]} 13. Bxd5 {[%clk 0:02:13.4]} 13... Bc6 {[%clk
0:02:04.5]} 14. Bxc6 {[%clk 0:02:05.5]} 14... Nxc6 {[%clk 0:02:04.9]} 15. Bf4
{[%clk 0:02:05.6]} 15... Bf6 {[%clk 0:02:02.3]} 16. c3 {[%clk 0:02:05.7]} 16...
Be5 {[%clk 0:01:57.9]} 17. Be3 {[%clk 0:01:44.6]} 17... Qf6 {[%clk 0:01:41.1]}
18. Nd2 {[%clk 0:01:42]} 18... Rad8 {[%clk 0:01:40.8]} 19. Qb3 {[%clk 0:01:34]}
19... b6 {[%clk 0:01:34.4]} 20. Nf3 {[%clk 0:01:32.6]} 20... Bf4 {[%clk
0:01:31.6]} 21. Rfe1 {[%clk 0:01:24.9]} 21... Na5 {[%clk 0:01:19.9]} 22. Qa4
{[%clk 0:01:20.5]} 22... Bxe3 {[%clk 0:01:17.5]} 23. Rxe3 {[%clk 0:01:22.4]}
23... Qc6 {[%clk 0:01:06.7]} 24. Qf4 {[%clk 0:01:06.9]} 24... Nc4 {[%clk
0:01:00.9]} 25. Re2 {[%clk 0:01:02.3]} 25... h6 {[%clk 0:00:55.5]} 26. Nd4
{[%clk 0:01:00.8]} 26... Qd6 {[%clk 0:00:51.5]} 27. Qg4 {[%clk 0:00:36.5]} 27...
Ne5 {[%clk 0:00:34.4]} 28. Qg3 {[%clk 0:00:33.9]} 28... Ng6 {[%clk 0:00:29.1]}
29. Qxd6 {[%clk 0:00:29.8]} 29... Rxd6 {[%clk 0:00:25.2]} 30. Nb5 {[%clk
0:00:23.4]} 30... Rd5 {[%clk 0:00:20.7]} 31. Nxc7 {[%clk 0:00:15]} 31... Ra5
{[%clk 0:00:20]} 32. b4 {[%clk 0:00:15.2]} 32... Rg5 {[%clk 0:00:20.4]} 33. g3
{[%clk 0:00:15.4]} 33... Rc8 {[%clk 0:00:20.5]} 34. Re8+ {[%clk 0:00:15.3]}
34... Rxe8 {[%clk 0:00:21.2]} 35. Nxe8 {[%clk 0:00:17.2]} 35... Rd5 {[%clk
0:00:17.8]} 36. Rc1 {[%clk 0:00:16.1]} 36... Rd2 {[%clk 0:00:18.7]} 37. a4
{[%clk 0:00:16.5]} 37... Ra2 {[%clk 0:00:18.1]} 38. a5 {[%clk 0:00:16.3]} 38...
bxa5 {[%clk 0:00:18.2]} 39. bxa5 {[%clk 0:00:18.2]} 39... Rxa5 {[%clk
0:00:19.4]} 40. c4 {[%clk 0:00:19.7]} 40... Rc5 {[%clk 0:00:19.5]} 41. Nd6
{[%clk 0:00:21]} 41... Ne5 {[%clk 0:00:17.4]} 42. f4 {[%clk 0:00:21.8]} 42...
Nc6 {[%clk 0:00:16.3]} 43. Nb7 {[%clk 0:00:22.2]} 43... Rf5 {[%clk 0:00:16.3]}
44. c5 {[%clk 0:00:23.3]} 44... Rd5 {[%clk 0:00:14.9]} 45. Ra1 {[%clk
0:00:23.6]} 45... a5 {[%clk 0:00:13.9]} 46. Rb1 {[%clk 0:00:23]} 46... a4 {[%clk
0:00:14.6]} 47. Rb6 {[%clk 0:00:24]} 47... a3 {[%clk 0:00:14]} 48. Ra6 {[%clk
0:00:22.7]} 48... Rd3 {[%clk 0:00:14.9]} 49. Kf2 {[%clk 0:00:23.7]} 49... Nb4
{[%clk 0:00:15.7]} 50. Ra8+ {[%clk 0:00:24.6]} 50... Kh7 {[%clk 0:00:16]} 51.
Nd6 {[%clk 0:00:25.2]} 51... a2 {[%clk 0:00:15.6]} 52. c6 {[%clk 0:00:25.9]}
52... Rxd6 {[%clk 0:00:14.3]} 53. c7 {[%clk 0:00:26.9]} 53... Rc6 {[%clk
0:00:15.7]} 0-1

[Event "*** Titled Tuesday Blitz"]
[Site "Chess.com"]
[Date "2019.02.05"]
[Round "5"]
[White "MasterKroket"]
[Black "champ2005"]
[Result "0-1"]
[WhiteElo "2395"]
[BlackElo "2602"]
[TimeControl "180+2"]
[EndTime "14:07:26 PST"]
[Termination "champ2005 won on time"]

1. d4 {[%clk 0:03:01.9]} 1... Nf6 {[%clk 0:03:00.7]} 2. c4 {[%clk 0:03:03.1]}
2... g6 {[%clk 0:03:01.5]} 3. Nc3 {[%clk 0:03:04.4]} 3... Bg7 {[%clk 0:03:02.5]}
4. e4 {[%clk 0:03:05.6]} 4... d6 {[%clk 0:03:04.2]} 5. Nf3 {[%clk 0:03:07.2]}
5... O-O {[%clk 0:03:05.2]} 6. Be2 {[%clk 0:03:08.8]} 6... e5 {[%clk 0:03:06.4]}
7. d5 {[%clk 0:03:10.4]} 7... a5 {[%clk 0:03:06.9]} 8. Bg5 {[%clk 0:03:11.4]}
8... h6 {[%clk 0:03:07]} 9. Bh4 {[%clk 0:03:12.2]} 9... Qe8 {[%clk 0:03:02.7]}
10. O-O {[%clk 0:03:11.8]} 10... Nh7 {[%clk 0:03:02.7]} 11. Nd2 {[%clk
0:03:11.1]} 11... f5 {[%clk 0:02:59.4]} 12. exf5 {[%clk 0:03:10.1]} 12... Bxf5
{[%clk 0:02:58.2]} 13. Nde4 {[%clk 0:03:07.9]} 13... Nd7 {[%clk 0:02:58.8]} 14.
Bd3 {[%clk 0:03:06.9]} 14... Nhf6 {[%clk 0:02:49.7]} 15. Qe2 {[%clk 0:03:01.2]}
15... Nh5 {[%clk 0:02:47]} 16. Bg3 {[%clk 0:02:52.8]} 16... Nf4 {[%clk
0:02:47.9]} 17. Qe3 {[%clk 0:02:45.3]} 17... Nxd3 {[%clk 0:02:45.7]} 18. Qxd3
{[%clk 0:02:46.5]} 18... g5 {[%clk 0:02:46.7]} 19. f3 {[%clk 0:02:44.8]} 19...
Qg6 {[%clk 0:02:46.2]} 20. Qe3 {[%clk 0:02:35.6]} 20... b6 {[%clk 0:02:34.7]}
21. Rae1 {[%clk 0:02:25.5]} 21... Rf7 {[%clk 0:02:35]} 22. Nb5 {[%clk
0:02:21.3]} 22... Nf6 {[%clk 0:02:31.4]} 23. Nxf6+ {[%clk 0:02:19.7]} 23... Bxf6
{[%clk 0:02:33.3]} 24. b3 {[%clk 0:02:11.5]} 24... Raf8 {[%clk 0:02:30.7]} 25.
Nc3 {[%clk 0:02:11.8]} 25... h5 {[%clk 0:02:23.9]} 26. h3 {[%clk 0:02:08.8]}
26... Bg7 {[%clk 0:02:18]} 27. Ne4 {[%clk 0:02:07.5]} 27... Bh6 {[%clk
0:02:18.8]} 28. Qe2 {[%clk 0:02:03]} 28... g4 {[%clk 0:02:19.9]} 29. Kh2 {[%clk
0:01:31.8]} 29... Rg7 {[%clk 0:01:36.3]} 30. fxg4 {[%clk 0:01:20.6]} 30... hxg4
{[%clk 0:01:37.2]} 31. h4 {[%clk 0:01:14.2]} 31... Rgf7 {[%clk 0:00:57.7]} 32.
Rf2 {[%clk 0:01:02.9]} 32... Bd7 {[%clk 0:00:53.4]} 33. Rxf7 {[%clk 0:01:01.5]}
33... Rxf7 {[%clk 0:00:53.6]} 34. Kg1 {[%clk 0:00:52.1]} 34... Bf5 {[%clk
0:00:42.6]} 35. Nf2 {[%clk 0:00:37.5]} 35... Bg7 {[%clk 0:00:38.3]} 36. a3
{[%clk 0:00:21]} 36... Bf6 {[%clk 0:00:39.1]} 37. Ne4 {[%clk 0:00:17]} 37... Be7
{[%clk 0:00:32.3]} 38. Nc3 {[%clk 0:00:13.1]} 38... Qh5 {[%clk 0:00:26.9]} 39.
Qf2 {[%clk 0:00:09.4]} 39... Bg6 {[%clk 0:00:23.4]} 40. Qe3 {[%clk 0:00:07.2]}
40... Bxh4 {[%clk 0:00:24.3]} 41. Rf1 {[%clk 0:00:04.7]} 41... Rxf1+ {[%clk
0:00:17.6]} 42. Kxf1 {[%clk 0:00:06.6]} 42... Bg5 {[%clk 0:00:18.8]} 43. Qg1
{[%clk 0:00:04.8]} 43... Bd3+ {[%clk 0:00:17.6]} 44. Ke1 {[%clk 0:00:04.5]}
44... Qh6 {[%clk 0:00:18.2]} 45. Ne2 {[%clk 0:00:03]} 45... Be3 {[%clk
0:00:11.8]} 0-1

[Event "*** Titled Tuesday Blitz"]
[Site "Chess.com"]
[Date "2019.02.05"]
[Round "5"]
[White "GianmarcoVaR"]
[Black "CaptainCasanova"]
[Result "0-1"]
[WhiteElo "2606"]
[BlackElo "2774"]
[TimeControl "180+2"]
[EndTime "14:07:28 PST"]
[Termination "CaptainCasanova won by checkmate"]

1. b3 {[%clk 0:00:41.5]} 1... a5 {[%clk 0:02:56.6]} 2. Bb2 {[%clk 0:00:43.4]}
2... a4 {[%clk 0:02:57.7]} 3. b4 {[%clk 0:00:44.5]} 3... e6 {[%clk 0:02:56.5]}
4. a3 {[%clk 0:00:45.9]} 4... Nf6 {[%clk 0:02:50.7]} 5. c4 {[%clk 0:00:47.1]}
5... d5 {[%clk 0:02:51]} 6. e3 {[%clk 0:00:48.6]} 6... c5 {[%clk 0:02:50.9]} 7.
b5 {[%clk 0:00:49.4]} 7... Nbd7 {[%clk 0:02:49.5]} 8. d3 {[%clk 0:00:49.5]} 8...
Bd6 {[%clk 0:02:47.9]} 9. Nd2 {[%clk 0:00:50.7]} 9... O-O {[%clk 0:02:49]} 10.
Qc2 {[%clk 0:00:50.2]} 10... Ne5 {[%clk 0:02:37.9]} 11. Be2 {[%clk 0:00:50.3]}
11... b6 {[%clk 0:02:35]} 12. Ngf3 {[%clk 0:00:51.6]} 12... Ng6 {[%clk
0:02:35.9]} 13. O-O {[%clk 0:00:48.5]} 13... Bb7 {[%clk 0:02:36.9]} 14. e4
{[%clk 0:00:49.8]} 14... d4 {[%clk 0:02:33.4]} 15. Rfe1 {[%clk 0:00:50.8]} 15...
Ng4 {[%clk 0:02:14.1]} 16. Nf1 {[%clk 0:00:50.2]} 16... Nf4 {[%clk 0:02:14.1]}
17. Bd1 {[%clk 0:00:50.5]} 17... h5 {[%clk 0:01:47.1]} 18. e5 {[%clk 0:00:50.4]}
18... Bxf3 {[%clk 0:01:41.9]} 19. Bxf3 {[%clk 0:00:50.6]} 19... Nxe5 {[%clk
0:01:41.3]} 20. Bxa8 {[%clk 0:00:47.9]} 20... Qxa8 {[%clk 0:01:43.2]} 21. f3
{[%clk 0:00:33.5]} 21... Nxf3+ {[%clk 0:01:36.5]} 22. Kh1 {[%clk 0:00:15.2]}
22... Nxe1 {[%clk 0:01:35.7]} 23. Rxe1 {[%clk 0:00:16.8]} 23... h4 {[%clk
0:01:25.8]} 24. Bc1 {[%clk 0:00:18.1]} 24... h3 {[%clk 0:00:38.5]} 25. Bxf4
{[%clk 0:00:19.1]} 25... Bxf4 {[%clk 0:00:40.4]} 26. Re4 {[%clk 0:00:20.2]}
26... Bc7 {[%clk 0:00:38.1]} 27. Kg1 {[%clk 0:00:21.2]} 27... hxg2 {[%clk
0:00:29.1]} 28. Qxg2 {[%clk 0:00:22.1]} 28... g6 {[%clk 0:00:30.2]} 29. h4
{[%clk 0:00:22.7]} 29... Kg7 {[%clk 0:00:31.6]} 30. h5 {[%clk 0:00:21.6]} 30...
Rg8 {[%clk 0:00:25.6]} 31. Qg5 {[%clk 0:00:09.5]} 31... Qd8 {[%clk 0:00:21.6]}
32. Qg4 {[%clk 0:00:03.9]} 32... f5 {[%clk 0:00:17.5]} 33. Qxg6+ {[%clk
0:00:01.4]} 33... Kf8 {[%clk 0:00:17.3]} 34. Rxe6 {[%clk 0:00:02.8]} 34... Rxg6+
{[%clk 0:00:17.8]} 35. Rxg6 {[%clk 0:00:04.5]} 35... Qh4 {[%clk 0:00:18.4]} 36.
Kg2 {[%clk 0:00:04.9]} 36... Qxh5 {[%clk 0:00:18.9]} 37. Rf6+ {[%clk 0:00:06.4]}
37... Ke7 {[%clk 0:00:19.5]} 38. Rc6 {[%clk 0:00:08.3]} 38... Qe2+ {[%clk
0:00:20]} 39. Kg1 {[%clk 0:00:09.1]} 39... Bf4 {[%clk 0:00:19.9]} 40. Rxb6
{[%clk 0:00:09.3]} 40... Qxd3 {[%clk 0:00:20.3]} 41. Rb7+ {[%clk 0:00:10.8]}
41... Kf6 {[%clk 0:00:21.2]} 42. Rb6+ {[%clk 0:00:12]} 42... Kg5 {[%clk
0:00:21.1]} 43. Rb7 {[%clk 0:00:12.2]} 43... Qxc4 {[%clk 0:00:22.5]} 44. b6
{[%clk 0:00:12.2]} 44... Qb5 {[%clk 0:00:23.6]} 45. Rh7 {[%clk 0:00:12.5]} 45...
Qxb6 {[%clk 0:00:24.2]} 46. Rh3 {[%clk 0:00:13.4]} 46... c4 {[%clk 0:00:25.1]}
47. Rf3 {[%clk 0:00:14.1]} 47... d3+ {[%clk 0:00:27]} 48. Kg2 {[%clk 0:00:15.6]}
48... Qb2+ {[%clk 0:00:27.3]} 49. Kh3 {[%clk 0:00:14.2]} 49... Qe2 {[%clk
0:00:26.9]} 50. Rg3+ {[%clk 0:00:10.6]} 50... Kf6 {[%clk 0:00:26.3]} 51. Nh2
{[%clk 0:00:11.2]} 51... Qxh2+ {[%clk 0:00:25.7]} 52. Kxh2 {[%clk 0:00:12.3]}
52... d2 {[%clk 0:00:27.6]} 53. Kg2 {[%clk 0:00:13.9]} 53... Bxg3 {[%clk
0:00:29.5]} 54. Kf1 {[%clk 0:00:14.4]} 54... d1=Q+ {[%clk 0:00:31.4]} 55. Kg2
{[%clk 0:00:16.1]} 55... Qb3 {[%clk 0:00:31.9]} 56. Kf1 {[%clk 0:00:18]} 56...
Qf3+ {[%clk 0:00:32.2]} 57. Kg1 {[%clk 0:00:19.6]} 57... Qf2+ {[%clk 0:00:34.1]}
58. Kh1 {[%clk 0:00:19.9]} 58... Qh2# {[%clk 0:00:36]} 0-1